[Event "45th FIDE Olympiad 2024"]
[Site "Budapest"]
[Date "2024.09.16"]
[Round "6.9"]
[White "Carlsen, Magnus"]
[Black "Maghsoodloo, Parham"]
[Result "1/2-1/2"]
[ECO "B12"]
[WhiteElo "2832"]
[BlackElo "2723"]
[Annotator "TA"]
[PlyCount "174"]
[EventDate "2024.09.05"]
[EventType "team-tourn"]
[EventCountry "HUN"]
[SourceTitle "playchess.com"]
[Source "ChessBase"]
[SourceQuality "1"]
[WhiteTeam "Norway"]
[BlackTeam "Iran"]
[WhiteTeamCountry "NOR"]
[BlackTeamCountry "IRI"]
[TimeControl "40/5400+30:1800+30"]

{[%evp 10,174,15,8,20,27,19,22,30,30,33,23,48,33,40,24,64,58,63,58,66,44,57,47,61,37,43,45,65,25,69,75,80,77,81,88,66,72,87,52,58,59,65,45,52,40,54,53,95,101,95,65,85,50,50,55,81,90,97,61,108,50,63,58,66,69,49,47,57,20,56,25,37,39,37,0,0,0,0,0,0,0,0,0,0,0,0,0,0,0,0,0,0,0,0,0,0,0,0,0,0,0,0,0,0,0,0,0,0,0,0,0,0,0,0,0,0,0,0,0,0,0,0,0,0,0,0,6,6,0,0,0,0,0,26,11,11,12,183,184,310,314,471,184,184,184,184,0,0,0,0,0,0,0,0,0,0,0,0,0,0,0,0,0,0,0,0]} 1. e4 {[%emt 0:07:51]} c6 {[%emt 0:00:07]} 2. d4 {[%emt 0:00:20]} d5 {[%emt 0:00:06]} 3. e5 {[%emt 0:00:35]} Bf5 {[%emt 0:00:08]} 4. Nd2 {[%emt 0:00:10]} e6 {[%emt 0:01:03]} 5. Nb3 {[%emt 0:01:28]} Nd7 {[%emt 0:03:04]} 6. Nf3 {[%emt 0:01:35]} Ne7 {[%emt 0:02:51]} 7. Be2 {[%emt 0:04:55]} h6 {[%emt 0:01:04]} 8. O-O {[%emt 0:01:03]} Bh7 {[%emt 0:08:24]} 9. a4 {[%emt 0:07:29]} a5 {[%emt 0:02:29]} 10. Bd2 {[%emt 0:02:25]} Qb6 {[%emt 0:03:56]} 11. Rc1 {[%emt 0:03:19]} g5 {[%emt 0:04:24]} 12. Kh1 {[%emt 0:06:32]} Ng6 {[%emt 0:05:41][%cal Be7g6,Bg6h4,Bh4f5,Bf5g7,Bg7e6][%mdl 32]} 13. Bd3 {[%emt 0:14:31]} Bb4 {[%emt 0:03:03]} 14. Be3 {[%emt 0:03:04]} Qc7 {[%emt 0:05:15]} 15. Nfd2 {[%emt 0:05:35]} Nh4 {[%emt 0:04:02]} 16. Bxh7 {[%emt 0:01:09]} Rxh7 {[%emt 0:00:06]} 17. c3 {[%emt 0:02:32][%cal Bc2c3,Bc3c4][%mdl 32]} Be7 {[%emt 0:02:09]} 18. c4 {[%emt 0:00:16]} Nf8 {[%emt 0:02:12]} 19. f4 {[%emt 0:06:11]} Nf5 {[%emt 0:02:16]} 20. Bg1 {[%emt 0:00:24]} gxf4 {[%emt 0:03:13]} 21. cxd5 {[%emt 0:05:07]} exd5 {[%emt 0:00:06]} 22. Rxf4 {[%emt 0:00:05]} Ng7 {[%emt 0:00:43]} 23. Qc2 {[%emt 0:00:46]} h5 {[%emt 0:08:21]} 24. Rcf1 {[%emt 0:00:47] White has more active pieces. The black rooks are passive.} Nge6 {[%emt 0:00:33]} 25. Rf5 {[%emt 0:00:23]} Qb6 {[%emt 0:04:34]} 26. Nb1 {[%emt 0:11:54]} h4 {[%emt 0:05:45]} 27. h3 {[%emt 0:00:27]} Rg7 {[%emt 0:03:17]} 28. Nc3 {[%emt 0:00:36]} Bg5 {[%emt 0:05:57]} 29. Nd2 {[%emt 0:04:46][%cal Oc3e4]} Qa6 {[%emt 0:04:22]} (29... Nxd4 $2 {is the wrong capture.} 30. Bxd4 Qxd4 31. Nf3 $18) 30. R1f3 {[%emt 0:01:42]} Rd8 {[%emt 0:01:30]} 31. Nf1 {[%emt 0:01:27]} Rd7 {[%emt 0:01:41]} 32. Nh2 {[%emt 0:00:42]} Qc4 {[%emt 0:02:48]} 33. b3 {[%emt 0:04:01]} Qb4 {[%emt 0:04:07]} 34. Ne2 {[%emt 0:00:42]} Ng6 {[%emt 0:00:06]} (34... Qd2 $14 35. Qxd2 Bxd2) 35. Ng4 {[%emt 0:00:38]} (35. Rd3 $16) 35... Ne7 $14 {[%emt 0:00:18] [#]} 36. Rf6 {[%emt 0:01:07]} Qd2 {[%emt 0:01:29] Inhibits Be3.} 37. Qxd2 {[%emt 0:00:44]} Bxd2 {[%emt 0:00:06]} 38. Be3 {[%emt 0:00:50]} Bxe3 {[%emt 0:00:10]} 39. Rxe3 {[%emt 0:00:16]} c5 {[%emt 0:01:36]} 40. dxc5 {[%emt 0:00:59]} d4 $1 {[%emt 0:00:05]} 41. Rd3 {[%emt 0:30:35][%cal Of6e6] [#] Threatens to win with Rxe6!} Nc6 {[%emt 0:35:48][%cal Oe8e7]} 42. Rxe6+ {[%emt 0:00:00]} fxe6 {[%emt 0:00:00]} 43. Nf6+ {[%emt 0:00:00]} Kf8 {[%emt 0:00:00]} 44. Nxd7+ {[%emt 0:00:00]} Rxd7 $11 {[%emt 0:00:00][%mdl 4096] Endgame. KRN-KRN} 45. g3 {[%emt 0:00:00]} Kg8 {[%emt 0:00:00]} 46. gxh4 {[%emt 0:00:00]} Rd5 {[%emt 0:00:00]} 47. Kg2 {[%emt 0:00:00]} Kh7 {[%emt 0:00:00]} (47... Nxe5 48. Rxd4 Rxc5 49. h5 $11) 48. Rd2 {[%emt 0:00:00]} Rxc5 {[%emt 0:00:00]} 49. Nxd4 {[%emt 0:00:00]} Nxd4 {[%emt 0:00:00]} 50. Rxd4 {[%emt 0:00:00] Rd7+ would now be deadly. KR-KR} b5 $1 {[%emt 0:00:00]} 51. Kf3 {[%emt 0:00:00]} Rxe5 {[%emt 0:00:00]} 52. Re4 {[%emt 0:00:00]} Rf5+ {[%emt 0:00:00]} 53. Ke3 {[%emt 0:00:00]} bxa4 {[%emt 0:00:00]} 54. bxa4 {[%emt 0:00:00]} Rh5 $1 {[%emt 0:00:00]} 55. Rg4 {[%emt 0:00:00]} Kh6 {[%emt 0:01:27]} 56. Kd4 {[%emt 0:00:00]} Rd5+ {[%emt 0:00:22]} 57. Kc4 {[%emt 0:00:00]} Re5 {[%emt 0:00:05] Prevents Re4} 58. Kd4 {[%emt 0:01:50]} Rd5+ {[%emt 0:00:12]} 59. Ke3 {[%emt 0:00:24]} Rh5 {[%emt 0:00:37]} 60. Re4 {[%emt 0:00:50]} Kg7 {[%emt 0:00:46]} 61. Kf3 {[%emt 0:00:58]} Kf6 {[%emt 0:05:37]} 62. Kg4 {[%emt 0:00:27]} Rh8 {[%emt 0:00:15]} 63. Rf4+ {[%emt 0:04:06]} Kg6 {[%emt 0:00:13]} 64. Re4 {[%emt 0:00:37]} Kf6 {[%emt 0:00:17]} 65. h5 {[%emt 0:00:07]} Rg8+ {[%emt 0:01:00]} 66. Kf3 {[%emt 0:01:28] Black must now prevent Rf4+.} Rg5 {[%emt 0:00:48]} 67. Rh4 {[%emt 0:00:18]} Kg7 {[%emt 0:02:04]} 68. h6+ {[%emt 0:00:17]} Kh7 {[%emt 0:00:07]} 69. Re4 {[%emt 0:00:15]} Rh5 {[%emt 0:01:30]} 70. Kg4 {[%emt 0:01:22]} Rxh6 {[%emt 0:00:01]} 71. Re5 {[%emt 0:00:13]} Rg6+ {[%emt 0:00:04]} 72. Kf4 {[%emt 0:00:46]} Rf6+ {[%emt 0:00:07]} 73. Kg3 {[%emt 0:00:16]} Rg6+ $2 {[%emt 0:01:19]} (73... Rf5 $11 {and Black is okay.} 74. Rxe6 Rc5) 74. Kh2 $18 {[%emt 0:00:09]} Rf6 {[%emt 0:00:23]} (74... Rg8 {keeps fighting.} 75. Rxa5 (75. Rxe6 Rg5 $14) 75... Kg6) 75. Rxa5 {[%emt 0:00:10]} Rf3 {[%emt 0:00:05]} (75... Rf8 $142 76. Kg3 Rf1) 76. Rg5 $2 {[%emt 0:01:57]} (76. Ra8 e5 77. a5) 76... Ra3 {[%emt 0:00:21]} 77. a5 {[%emt 0:00:33]} Kh6 {[%emt 0:00:19]} 78. h4 $2 {[%emt 0:00:45]} (78. Rc5 $18) 78... Ra4 $11 {[%emt 0:00:31] The position is equal.} 79. Kg3 {[%emt 0:00:05] And now Rc5 would win.} Ra3+ {[%emt 0:00:04]} 80. Kf4 {[%emt 0:01:01] Hoping for Rb5.} Ra4+ {[%emt 0:00:06]} 81. Ke3 {[%emt 0:00:09] Re5 is the strong threat.} Rxh4 {[%emt 0:00:22]} 82. Re5 {[%emt 0:00:09]} Kg7 {[%emt 0:00:18]} 83. a6 {[%emt 0:02:09]} Ra4 {[%emt 0:02:38] Inhibits Ra5.} 84. Rxe6 {[%emt 0:00:01]} Kf7 {[%emt 0:00:04]} 85. Rh6 {[%emt 0:00:07]} Kg7 {[%emt 0:00:27]} 86. Rb6 {[%emt 0:00:46]} Kf7 {[%emt 0:00:02]} 87. Kd3 {[%emt 0:00:13]} Ke7 {[%emt 0:00:15] Weighted Error Value: White=0.10 (very precise) /Black=0.07 (flawless) .  Loses game:     	---       	Black=1      Missed win:     	White=1     	---        Mistake:       	White=2     	Black=3      Inaccurate:     	White=8     	Black=5      OK:         	White=20    	Black=37     Best:        	White=6     	Black=11     Strong:       	---       	Black=3      Brilliant:      	White=1     	---} 1/2-1/2

[Event "45th FIDE Olympiad 2024"]
[Site "Budapest"]
[Date "2024.09.16"]
[Round "6.9"]
[White "Al-Hajiri, Bader"]
[Black "Seder, Mohammed"]
[Result "0-1"]
[WhiteElo "1947"]
[BlackElo "2116"]
[PlyCount "72"]
[EventDate "2024.09.05"]
[EventType "team-tourn"]
[EventCountry "HUN"]
[WhiteTeam "Kuwait"]
[BlackTeam "Palestine"]
[WhiteTeamCountry "KUW"]
[BlackTeamCountry "PLE"]
[TimeControl "40/5400+30:1800+30"]

1. e4 c5 2. Nf3 Nc6 3. d4 cxd4 4. Nxd4 Nf6 5. Nc3 e5 6. Ndb5 d6 7. Bg5 a6 8. Na3 b5 9. Nd5 Be7 10. Bxf6 Bxf6 11. c4 b4 12. Nc2 Rb8 13. b3 Bg5 14. h4 Bh6 15. g3 a5 16. Bh3 Bb7 17. Qf3 Ne7 18. Nce3 Bxd5 19. cxd5 Bxe3 20. Qxe3 O-O 21. Qd3 Nc8 22. Qa6 Qb6 23. Qxb6 Rxb6 24. Kd2 Na7 25. Rhc1 Nb5 26. Rc6 Rfb8 27. Kd3 Kf8 28. Rac1 Ke7 29. f4 f6 30. Be6 Rxc6 31. Rxc6 Rb7 32. Ra6 Ra7 33. Rb6 Nc3 34. a4 bxa3 35. fxe5 fxe5 36. Kc2 Rc7 {0-} 0-1

[Event "45th FIDE Olympiad 2024"]
[Site "Budapest"]
[Date "2024.09.16"]
[Round "6.10"]
[White "Tabatabaei, M. Amin"]
[Black "Christiansen, Johan-Sebastian"]
[Result "1/2-1/2"]
[ECO "C02"]
[WhiteElo "2714"]
[BlackElo "2661"]
[Annotator "TA"]
[PlyCount "97"]
[EventDate "2024.09.05"]
[EventType "team-tourn"]
[EventCountry "HUN"]
[SourceTitle "playchess.com"]
[Source "ChessBase"]
[SourceQuality "1"]
[WhiteTeam "Iran"]
[BlackTeam "Norway"]
[WhiteTeamCountry "IRI"]
[BlackTeamCountry "NOR"]
[TimeControl "40/5400+30:1800+30"]

{[%evp 9,97,22,30,-12,-7,-14,0,0,24,14,0,0,10,0,81,73,67,72,77,-7,-5,-70,-64,-72,-75,-66,-18,-11,-13,-10,-10,-12,-12,-16,-10,-10,-9,-18,0,-4,0,-9,-15,-6,-8,-12,-12,-5,-4,-2,-3,-12,-7,-8,-8,-8,-4,-19,-16,-22,-18,-26,0,0,0,-12,0,0,0,0,0,0,0,0,0,0,0,0,0,0,16,0,0,0,0,0,14,0,0,0]} 1. e4 {[%emt 0:03:30]} e6 {[%emt 0:00:15]} 2. d4 {[%emt 0:00:05]} d5 {[%emt 0:00:07]} 3. e5 {[%emt 0:00:03]} c5 {[%emt 0:00:04]} 4. c3 {[%emt 0:00:04]} Qa5 {[%emt 0:00:02]} 5. dxc5 {[%emt 0:09:28]} Qc7 {[%emt 0:00:02]} 6. b4 {[%emt 0:15:27]} Qxe5+ {[%emt 0:00:09]} 7. Be2 {[%emt 0:04:56]} b6 {[%emt 0:01:02]} 8. Nf3 {[%emt 0:02:02]} Qc7 {[%emt 0:00:07]} 9. c4 {[%emt 0:10:22]} dxc4 {[%emt 0:21:15]} 10. Na3 {[%emt 0:02:34]} bxc5 {[%emt 0:03:10]} 11. Nxc4 {[%emt 0:11:31]} Nd7 {[%emt 0:08:00] [#] Wards off Nfe5} (11... Nf6 $11 {remains equal.}) 12. g3 $1 $16 {[%emt 0:08:16]} Ngf6 {[%emt 0:21:59]} 13. Bf4 {[%emt 0:02:09]} Qb7 {[%emt 0:00:02]} 14. bxc5 {[%emt 0:01:54]} (14. O-O $16) 14... Bxc5 $11 {[%emt 0:01:02]} 15. O-O {[%emt 0:09:51] Active counter play!} (15. Nd6+ $11 Bxd6 16. Bxd6) 15... O-O $15 {[%emt 0:02:04]} 16. Rb1 {[%emt 0:02:18]} Nb6 {[%emt 0:03:28]} 17. Rb5 {[%emt 0:00:02]} Qd5 {[%emt 0:13:40]} (17... Qe7 $1 $15 18. Nd6 Nbd7) 18. Qxd5 $11 {[%emt 0:02:57]} exd5 {[%emt 0:00:02]} 19. Rxc5 {[%emt 0:00:11]} dxc4 {[%emt 0:00:28]} 20. Nd2 {[%emt 0:05:50]} Bh3 {[%emt 0:16:53]} 21. Rc1 {[%emt 0:00:49]} Rfe8 {[%emt 0:02:49]} 22. Be3 {[%emt 0:03:28] [#]} c3 $1 {[%emt 0:00:55]} 23. R5xc3 {[%emt 0:01:03]} Nfd5 {[%emt 0:01:01]} 24. Ra3 {[%emt 0:00:32]} Nxe3 {[%emt 0:00:05]} 25. Rxe3 {[%emt 0:00:20]} Rxe3 {[%emt 0:00:11]} 26. fxe3 {[%emt 0:00:03]} Be6 {[%emt 0:00:18]} 27. a3 {[%emt 0:00:33]} Rd8 {[%emt 0:00:50]} 28. Nf3 {[%emt 0:00:18]} Bg4 {[%emt 0:01:13]} 29. Kf2 {[%emt 0:00:34]} Rd5 {[%emt 0:02:24]} 30. Nd4 {[%emt 0:01:52]} Bxe2 {[%emt 0:00:08]} 31. Kxe2 {[%emt 0:00:07][%mdl 4096] Endgame. KRN-KRN} Ra5 {[%emt 0:00:26]} 32. Rc3 {[%emt 0:00:02]} g6 {[%emt 0:00:41]} 33. Kd3 {[%emt 0:00:54]} Kg7 {[%emt 0:00:30]} 34. Kc2 {[%emt 0:01:19]} Nd5 {[%emt 0:00:35]} 35. Rb3 {[%emt 0:00:25]} Ra4 {[%emt 0:00:59][%cal Od5e3]} 36. Nb5 {[%emt 0:01:00] The position is equal.} Ra5 {[%emt 0:00:38][%cal Od5e3]} 37. Kd3 {[%emt 0:00:29]} Ra4 {[%emt 0:00:41]} 38. e4 {[%emt 0:00:26]} Nf6 {[%emt 0:00:41]} 39. Rb4 {[%emt 0:01:29]} Ra5 {[%emt 0:00:16]} 40. a4 {[%emt 0:00:32]} Nd7 {[%emt 0:00:09]} 41. Kd4 {[%emt 0:05:11] Prevents Nc5.} Nb6 {[%emt 0:10:58]} 42. Nc3 {[%emt 0:00:36]} Ra6 {[%emt 0:03:15]} 43. e5 {[%emt 0:07:15]} Kf8 {[%emt 0:01:06]} 44. g4 {[%emt 0:01:04]} h6 {[%emt 0:00:04]} 45. h4 {[%emt 0:02:50]} Kg7 {[%emt 0:07:40]} 46. Kc5 {[%emt 0:09:16] Kb5 would now be deadly.} Ra5+ {[%emt 0:02:23]} 47. Kd4 {[%emt 0:00:50]} Ra6 {[%emt 0:00:24]} 48. Kc5 {[%emt 0:01:09] Hoping for Kb5.} Ra5+ {[%emt 0:00:06]} 49. Kd4 {[%emt 0:04:13] Weighted Error Value: White=0.08 (flawless) /Black=0.07 (flawless) .  Mistake:       	White=2     	Black=2      Inaccurate:     	---       	Black=1      OK:         	White=22    	Black=24     Best:        	White=2     	Black=4      Strong:       	White=1     	---} 1/2-1/2

[Event "45th FIDE Olympiad 2024"]
[Site "Budapest"]
[Date "2024.09.16"]
[Round "6.10"]
[White "Michel Yunis, Christian D."]
[Black "Al Ibrahim, Abdulrahman"]
[Result "1-0"]
[WhiteElo "2220"]
[BlackElo "1932"]
[PlyCount "107"]
[EventDate "2024.09.05"]
[EventType "team-tourn"]
[EventCountry "HUN"]
[WhiteTeam "Palestine"]
[BlackTeam "Kuwait"]
[WhiteTeamCountry "PLE"]
[BlackTeamCountry "KUW"]
[TimeControl "40/5400+30:1800+30"]

1. d4 d5 2. Nf3 Nf6 3. c4 e6 4. Bg5 dxc4 5. Qa4+ Nbd7 6. Nbd2 a6 7. Qxc4 c5 8. dxc5 Bxc5 9. Nb3 b5 10. Qc2 Bb4+ 11. Bd2 Bxd2+ 12. Qxd2 O-O 13. e3 Bb7 14. Be2 Rc8 15. O-O Nb6 16. Rfc1 Qxd2 17. Nbxd2 Na4 18. b4 Nc3 19. Kf1 Bd5 20. a3 Rfd8 21. Rc2 Nxe2 22. Rxc8 Rxc8 23. Kxe2 Rc3 24. a4 bxa4 25. Rxa4 Bc6 26. Ra2 Bb5+ 27. Kd1 Nd5 28. Rb2 Ra3 29. Ne1 Ra1+ 30. Nb1 Rxb1+ 31. Rxb1 Nc3+ 32. Kc2 Nxb1 33. Kxb1 Kf8 34. Kb2 Ke7 35. Kc3 Kd6 36. Nc2 Bf1 37. g3 Kd5 38. f3 e5 39. e4+ Kd6 40. Ne3 Bb5 41. Nf5+ Kc6 42. Nxg7 Be2 43. f4 Bf3 44. fxe5 Bxe4 45. e6 fxe6 46. Nxe6 Bg2 47. Nf4 Bf1 48. g4 Kb5 49. g5 Bc4 50. Nh5 Bf7 51. Nf6 Bg6 52. h4 Kc6 53. h5 Bf5 54. Nxh7 1-0

[Event "45th FIDE Olympiad 2024"]
[Site "Budapest"]
[Date "2024.09.16"]
[Round "6.11"]
[White "Tari, Aryan"]
[Black "Daneshvar, Bardiya"]
[Result "1/2-1/2"]
[ECO "C67"]
[WhiteElo "2642"]
[BlackElo "2598"]
[Annotator "TA"]
[PlyCount "56"]
[EventDate "2024.09.05"]
[EventType "team-tourn"]
[EventCountry "HUN"]
[SourceTitle "playchess.com"]
[Source "ChessBase"]
[SourceQuality "1"]
[WhiteTeam "Norway"]
[BlackTeam "Iran"]
[WhiteTeamCountry "NOR"]
[BlackTeamCountry "IRI"]
[TimeControl "40/5400+30:1800+30"]

{[%evp 9,56,8,12,-1,4,12,25,29,33,29,39,34,38,30,32,26,38,22,23,29,58,35,31,30,37,36,32,12,25,16,23,18,13,10,15,19,23,0,18,0,0,0,0,0,0,0,0,0,0]} 1. e4 {[%emt 0:00:19]} e5 {[%emt 0:00:02]} 2. Nf3 {[%emt 0:00:14]} Nc6 {[%emt 0:00:03]} 3. Bb5 {[%emt 0:00:10]} Nf6 {[%emt 0:00:05]} 4. O-O {[%emt 0:00:39]} Nxe4 {[%emt 0:00:05]} 5. Re1 {[%emt 0:00:18]} Nd6 {[%emt 0:00:04]} 6. a4 {[%emt 0:00:11]} a6 {[%emt 0:03:36]} 7. Nxe5 {[%emt 0:01:32]} Be7 {[%emt 0:01:16]} 8. Bf1 {[%emt 0:02:29] White has an edge.} Nf5 {[%emt 0:01:13]} 9. Nf3 {[%emt 0:15:47]} d5 {[%emt 0:00:13]} 10. d4 {[%emt 0:00:30]} O-O {[%emt 0:00:05]} 11. c3 {[%emt 0:05:22]} Bd6 {[%emt 0:03:35]} 12. g3 {[%emt 0:02:01]} Nfe7 {[%emt 0:02:53]} 13. Bg2 {[%emt 0:03:10]} Bf5 {[%emt 0:07:26]} 14. Nbd2 {[%emt 0:10:56][%cal Bb1d2,Bd2b3,Bb3d4,Bd4b5,Bb5d6][%mdl 32]} a5 {[%emt 0:04:22]} 15. Ne5 {[%emt 0:04:33]} Bxe5 {[%emt 0:05:05]} 16. dxe5 {[%emt 0:00:07]} Qd7 {[%emt 0:00:50]} 17. Nb3 {[%emt 0:02:32]} b6 {[%emt 0:04:53]} 18. Bg5 {[%emt 0:02:53]} Bg4 {[%emt 0:06:20]} 19. Qd3 {[%emt 0:03:10]} h6 {[%emt 0:03:50]} 20. Bxe7 {[%emt 0:00:37]} Nxe7 {[%emt 0:00:05]} 21. Nd4 {[%emt 0:00:28]} c5 {[%emt 0:06:28]} 22. Nb5 {[%emt 0:03:23]} Rad8 {[%emt 0:00:11]} 23. Nd6 {[%emt 0:03:21]} Be6 {[%emt 0:05:44] The position is equal.} 24. b3 {[%emt 0:03:08]} Nc8 {[%emt 0:03:32]} 25. Nb5 {[%emt 0:02:50]} Na7 {[%emt 0:00:21]} 26. Nd6 {[%emt 0:00:13]} Nc8 {[%emt 0:00:24]} 27. Nb5 {[%emt 0:03:44]} Na7 {[%emt 0:00:12]} 28. Nd6 {[%emt 0:04:48]} Nc8 {[%emt 0:00:46] Weighted Error Value: White=0.05 (flawless) /Black=0.05 (flawless) .  Inaccurate:     	---       	Black=1      OK:         	White=11    	Black=10} 1/2-1/2

[Event "45th FIDE Olympiad 2024"]
[Site "Budapest"]
[Date "2024.09.16"]
[Round "6.11"]
[White "Alsaqer, Meshal"]
[Black "Abdel Wahab, Ahmad"]
[Result "0-1"]
[WhiteElo "1815"]
[BlackElo "1995"]
[PlyCount "66"]
[EventDate "2024.09.05"]
[EventType "team-tourn"]
[EventCountry "HUN"]
[WhiteTeam "Kuwait"]
[BlackTeam "Palestine"]
[WhiteTeamCountry "KUW"]
[BlackTeamCountry "PLE"]
[TimeControl "40/5400+30:1800+30"]

1. d4 d5 2. Nf3 e6 3. c4 a6 4. cxd5 exd5 5. g3 Nf6 6. Bg2 Bd6 7. Nc3 O-O 8. O-O h6 9. b3 c6 10. Bb2 Re8 11. Rc1 Bf5 12. Na4 Nbd7 13. Nc5 Rb8 14. e3 Qe7 15. b4 Ne4 16. Nd2 Ndf6 17. Ndxe4 Nxe4 18. Qe2 Nf6 19. a4 Ra8 20. Ba1 a5 21. b5 b6 22. Na6 Rec8 23. Qa2 cxb5 24. axb5 Bd3 25. Bxd5 Bxf1 26. Rxf1 Nxd5 27. Qxd5 Ra7 28. e4 Qe6 29. Qxe6 fxe6 30. Rd1 Ba3 31. d5 exd5 32. exd5 Rd7 33. Kf1 Rc1 {0-} 0-1

[Event "45th FIDE Olympiad 2024"]
[Site "Budapest"]
[Date "2024.09.16"]
[Round "6.12"]
[White "Idani, Pouya"]
[Black "Urkedal, Frode Olav Olsen"]
[Result "1-0"]
[ECO "C84"]
[WhiteElo "2599"]
[BlackElo "2546"]
[Annotator "TA"]
[PlyCount "83"]
[EventDate "2024.09.05"]
[EventType "team-tourn"]
[EventCountry "HUN"]
[SourceTitle "playchess.com"]
[Source "ChessBase"]
[SourceQuality "1"]
[WhiteTeam "Iran"]
[BlackTeam "Norway"]
[WhiteTeamCountry "IRI"]
[BlackTeamCountry "NOR"]
[TimeControl "40/5400+30:1800+30"]

{[%evp 25,83,8,27,22,29,19,34,0,14,17,20,0,0,-12,0,-19,0,0,15,0,0,0,0,0,0,0,0,0,0,0,0,0,0,0,0,-20,79,76,643,639,716,722,707,724,697,711,804,804,804,777,990,994,1386,1290,1374,1362,1946,1672,5397,2308]} 1. e4 {[%emt 0:00:02]} e5 {[%emt 0:01:27]} 2. Nf3 {[%emt 0:00:07]} Nc6 {[%emt 0:00:04]} 3. Bb5 {[%emt 0:00:05]} a6 {[%emt 0:00:06]} 4. Ba4 {[%emt 0:00:05]} Nf6 {[%emt 0:00:05]} 5. O-O {[%emt 0:00:05]} Be7 {[%emt 0:00:04]} 6. d3 {[%emt 0:00:05]} b5 {[%emt 0:00:08]} 7. Bb3 {[%emt 0:00:06]} d6 {[%emt 0:00:05]} 8. c3 {[%emt 0:00:05]} O-O {[%emt 0:00:25]} 9. Bc2 {[%emt 0:00:04] 9.h3 is becoming the main line. C84: Closed Ruy Lopez: Unusual White 6th moves.} Re8 {[%emt 0:02:05]} 10. Re1 {[%emt 0:00:05]} h6 {[%emt 0:01:44]} 11. Nbd2 {[%emt 0:00:28]} Bf8 {[%emt 0:00:50]} 12. d4 {[%emt 0:01:59]} Bb7 {[%emt 0:06:25]} 13. b3 $5 $146 {[%emt 0:02:39][%mdl 8] New and interesting.} ({Predecessor:} 13. h3 Nb8 14. b3 Nbd7 15. Bb2 g6 16. a4 Bg7 17. b4 d5 18. Nxe5 Nxe5 19. dxe5 Nxe4 20. f4 g5 21. axb5 axb5 22. Rxa8 Bxa8 23. Nf3 gxf4 24. Bc1 Nxc3 {1-0 Grandelius,N (2688)-Yilmaz,M (2650) EU-chT 24th Budva 2023 (7.1)}) 13... Nb8 {[%emt 0:06:42]} 14. Bb2 {[%emt 0:01:15]} Nbd7 {[%emt 0:02:56]} 15. a4 {[%emt 0:01:32]} c6 {[%emt 0:07:22]} 16. Nf1 {[%emt 0:05:59]} g6 {[%emt 0:03:50]} 17. Ng3 {[%emt 0:01:52]} Bg7 {[%emt 0:00:06]} 18. Bd3 {[%emt 0:01:44]} Qc7 {[%emt 0:05:43]} 19. Rc1 {[%emt 0:18:20]} bxa4 {[%emt 0:09:27]} 20. bxa4 {[%emt 0:00:32]} d5 {[%emt 0:04:43]} 21. exd5 {[%emt 0:11:04]} Nxd5 {[%emt 0:06:41]} 22. c4 {[%emt 0:08:25]} Nf4 {[%emt 0:00:21]} 23. c5 {[%emt 0:00:12]} exd4 {[%emt 0:03:44]} 24. Ne4 {[%emt 0:07:52]} Nxd3 {[%emt 0:05:50]} 25. Qxd3 {[%emt 0:00:11]} Ne5 {[%emt 0:03:46]} 26. Nxe5 {[%emt 0:00:52]} Qxe5 {[%emt 0:00:19]} 27. Qd2 {[%emt 0:07:54]} Qd5 {[%emt 0:01:56]} 28. Nd6 {[%emt 0:01:31]} Rxe1+ {[%emt 0:01:11]} 29. Rxe1 {[%emt 0:01:51]} Rb8 {[%emt 0:11:05]} 30. Qb4 {[%emt 0:09:49] [#]} Bf8 {[%emt 0:05:09]} (30... a5 $2 31. Qb6 $18 (31. Qxa5 Bc8 $17)) (30... Be5 $1 $11 31. Qb6 (31. Nxb7 a5 $17) 31... Bxd6 32. cxd6 c5) 31. Ne8 $1 $16 {[%emt 0:04:12]} (31. Nxb7 Qd7 32. Qxd4 Qxd4 33. Bxd4 Rxb7 $14) 31... a5 $2 {[%emt 0:06:52][%mdl 8192]} (31... Qxc5 $16 32. Nf6+ Kg7 33. Qxc5 Bxc5) 32. Nf6+ $18 {[%emt 0:02:46]} (32. Qxd4 Qxd4 33. Bxd4 f5 $11) 32... Kg7 {[%emt 0:03:16] [#]} 33. Qd2 $1 {[%emt 0:00:18]} (33. Qxa5 Kxf6 34. Qc7 Rd8 35. Qxb7 Kg7 $17 (35... Bxc5 36. a5 $17) (35... Qxc5 36. Rc1 $11)) (33. Qxd4 Qxd4 34. Bxd4 Rd8 $16) (33. Nxd5 axb4 34. Bxd4+ f6 35. Nxb4 (35. Bxf6+ Kf7 $11) 35... Rd8 $14) 33... Qc4 {[%emt 0:01:04]} 34. Bxd4 {[%emt 0:05:49]} Rd8 {[%emt 0:00:01]} 35. Nd7+ {[%emt 0:00:55]} (35. Qxa5 $2 {too greedy.} Qxd4 36. Ne8+ Kg8 $19) 35... Kg8 {[%emt 0:00:18]} 36. Bf6 {[%emt 0:00:32]} (36. Qxa5 $2 {loses.} Rxd7 37. Bf6 Kh7 $19 (37... Qxc5 $2 38. Qxc5 Bxc5 39. Re8+ Bf8 40. h4 $19) (37... Bxc5 $2 38. h3 $19)) 36... Rxd7 {[%emt 0:02:04]} 37. Qxd7 {[%emt 0:00:05]} Qb4 {[%emt 0:00:10]} 38. Qe8 {[%emt 0:00:55]} Ba6 {[%emt 0:00:50]} 39. h3 {[%emt 0:01:43]} Bc4 {[%emt 0:00:34]} 40. Re3 {[%emt 0:01:45]} Qb1+ {[%emt 0:00:28] [#]} 41. Kh2 $1 {[%emt 0:30:06]} Qf5 {[%emt 0:02:52]} 42. Be7 {[%emt 0:00:00]} (42. Qxc6 Bd5 43. Qb6 Qxf2 $11) 1-0

[Event "45th FIDE Olympiad 2024"]
[Site "Budapest"]
[Date "2024.09.16"]
[Round "6.12"]
[White "Miswadah, Baha"]
[Black "Alabdaljader, Mohammed"]
[Result "1-0"]
[WhiteElo "1957"]
[BlackElo "1677"]
[PlyCount "99"]
[EventDate "2024.09.05"]
[EventType "team-tourn"]
[EventCountry "HUN"]
[WhiteTeam "Palestine"]
[BlackTeam "Kuwait"]
[WhiteTeamCountry "PLE"]
[BlackTeamCountry "KUW"]
[TimeControl "40/5400+30:1800+30"]

1. d4 Nf6 2. Bf4 d5 3. e3 e6 4. Nf3 c5 5. c3 Nc6 6. Nbd2 cxd4 7. exd4 Nh5 8. Be5 f6 9. Bg3 Bd6 10. Bxd6 Qxd6 11. Nh4 g6 12. g3 O-O 13. Bd3 Ne7 14. Qe2 Ng7 15. f4 Bd7 16. Ndf3 Nc6 17. Ng2 Rae8 18. O-O-O Qc7 19. Kb1 e5 20. dxe5 fxe5 21. Nxe5 Nxe5 22. fxe5 Rxe5 23. Qd2 Rf3 24. Bc2 Ne6 25. Rhf1 Ng5 26. Nf4 Rxf1 27. Rxf1 Qc5 28. Bb3 Bf5+ 29. Ka1 Be4 30. h4 Nf3 31. Qd1 Kh8 32. a3 Qb5 33. a4 Qb6 34. Ka2 Qe3 35. Nd3 Re7 36. Nb4 Rf7 37. Nxd5 Qc5 38. Nf4 Ne5 39. Bxf7 Nxf7 40. Qd4+ Qxd4 41. cxd4 Nd6 42. b3 Nf5 43. Ne6 Bd5 44. Nc7 Be4 45. Rf4 Bg2 46. d5 Kg7 47. h5 Kf6 48. g4 Ke5 49. gxf5 Kxf4 50. f6 1-0